fUST/lending_fUST_20250805
["ID","MTS","AMOUNT","RATE_DAILY","PERIOD"]
[377412270,1754392232472,-151.0,0.00027873,2]
[377412271,1754392232481,-250.0,0.00027873,2]
[377412272,1754392232491,-250.0,0.00027873,2]
[377412273,1754392232501,-250.0,0.00027873,2]
[377412274,1754392232510,-250.0,0.00027873,2]
[377412275,1754392232519,-250.0,0.00027873,2]
[377412276,1754392232529,-250.0,0.00027873,2]
[377412277,1754392232538,-250.0,0.00027873,2]
[377412278,1754392232548,-300.0,0.00027879,2]
[377412279,1754392232557,-257.03607028,0.00027879,2]
[377412280,1754392232567,-1204.10433737,0.0002788,2]
[377412281,1754392232579,-1147.73295028,0.0002788,2]
[377412315,1754392237811,-500.0,0.00027872,2]
[377412317,1754392237822,-194.82326187,0.00027872,2]
[377412319,1754392237831,-500.0,0.00027873,2]
[377412320,1754392237840,-12177.62828436,0.00027873,2]
[377412321,1754392237852,-6175.89236419,0.00027873,2]
[377412323,1754392237863,-413.300005,0.00027873,2]
[377412325,1754392237875,-483.2568244,0.00027873,2]
[377412332,1754392237931,-2938.46576357,0.00027873,2]
[377412334,1754392237941,-500.0,0.00027873,2]
[377412336,1754392237951,-169.81787871,0.00027873,2]
[377412338,1754392237961,-167.8257332,0.00027879,2]
[377412340,1754392237971,-115843.26931235,0.0002788,2]
[377412343,1754392237982,-2538.42348504,0.0002788,2]
[377412345,1754392237991,-3938.62421458,0.0002789,2]
[377412347,1754392238001,-78707.08488754,0.0002789,2]
[377412350,1754392238016,-10000.34046001,0.0002789,2]
[377412352,1754392238028,-9999.193761,0.0002789,2]
[377412354,1754392238040,-3913.30582821,0.0002789,2]
[377412427,1754392240023,-81255.2180635,0.0002789,2]
[377412429,1754392240035,-12642.67805801,0.0002789,2]
[377412434,1754392240076,-2128.67693277,0.0002789,2]
[377412436,1754392240088,-974.72626004,0.0002789,2]
[377412442,1754392240132,-10504.42754487,0.0002789,2]
[377412444,1754392240144,-272.67577278,0.0002789,2]
[377412447,1754392240155,-6120.46618601,0.0002789,2]
[377412464,1754392242926,-10125.21328211,0.0002789,2]
[377412465,1754392242938,-3037.43558038,0.0002789,2]
[377412469,1754392244942,190.26226954,0.000301,120]
[377412485,1754392267375,-460.04441979,0.00027873,5]
[377412489,1754392290529,-305.254097,0.00027872,2]
[377412490,1754392290576,400.0,0.0003,120]
[377412495,1754392314953,-194.745903,0.00027872,2]
[377412496,1754392314980,-18.15576947,0.00027872,2]
[377412498,1754392320691,-227.64757547,0.00027872,2]
[377412503,1754392343085,-300.0,0.00027871,2]
[377412504,1754392343110,-2.98142996,0.00027872,2]
[377412505,1754392343666,1500.0,0.0003,120]
[377412509,1754392386735,-300.0,0.0002787,2]
[377412510,1754392386761,-273.75347117,0.00027871,2]
[377412511,1754392412041,-296.14940659,0.0002787,2]
[377412512,1754392412063,-163.85059341,0.00027871,2]
[377412513,1754392416447,424.0,0.0003,120]
[377412514,1754392433241,210.9302073,0.00030667,120]
[377412520,1754392497405,-295.047,0.0002787,2]
[377412521,1754392511008,201.67089198,0.000249,2]
[377412522,1754392511081,201.67089182,0.000249,2]
[377412523,1754392511170,201.67089182,0.000249,2]
[377412524,1754392511278,201.67089182,0.000249,2]
[377412525,1754392511333,201.67089182,0.000249,2]
[377412526,1754392511484,201.67089182,0.000249,2]
[377412527,1754392511566,201.67089182,0.00025336,3]
[377412528,1754392511672,201.67089182,0.00027059,6]
[377412532,1754392514679,-300.0,0.00027869,2]
[377412533,1754392514703,-20.69491327,0.00027869,2]
[377412535,1754392538219,-131.30508673,0.00027869,2]
[377412536,1754392538242,-70.16192527,0.0002787,10]
[377412537,1754392540319,-260.05579535,0.0002787,10]
[377412538,1754392564385,-300.0,0.00027869,2]
[377412539,1754392564410,-130.06227938,0.0002787,10]
[377412540,1754392564434,-29.93772062,0.0002787,2]
[377412541,1754392566462,178.009969,0.00026872,2]
[377412542,1754392571081,500.0,0.00030667,120]
[377412543,1754392582265,1021.00958624,0.00025204,2]
[377412544,1754392582288,15645.45531785,0.00025204,2]
[377412545,1754392589139,-160.0,0.00027534,25]
[377412546,1754392592402,-59.04224927,0.00027534,25]
[377412547,1754392592426,-240.95775073,0.0002787,2]
[377412549,1754392628231,-236.35928118,0.00027868,2]
[377412550,1754392656756,-63.64071882,0.00027868,2]
[377412551,1754392656779,-216.13462102,0.00027869,2]
[377412552,1754392656801,-439.6578109,0.00027869,2]
[377412553,1754392656825,-236.57136159,0.00027869,2]
[377412554,1754392659484,-396.56519869,0.00027869,2]
[377412555,1754392659507,-227.64757547,0.00027869,2]
[377412556,1754392659532,-339.42794466,0.00027869,2]
[377412557,1754392662791,201.67089182,0.000249,2]
[377412558,1754392662874,201.67089182,0.000249,2]
[377412559,1754392662953,201.67089182,0.000249,2]
[377412560,1754392663030,201.67089182,0.000249,2]
[377412561,1754392663120,201.67089182,0.00025829,4]
[377412565,1754392681881,-293.70861562,0.00027869,2]
[377412566,1754392681908,-166.29138438,0.00027869,2]
[377412567,1754392702370,837.740603,0.00027397,120]
[377412571,1754392707888,150.5,0.00028044,120]
[377412572,1754392708336,150.5,0.00028034,120]
[377412573,1754392708707,-300.0,0.00027868,2]
[377412574,1754392708733,-101.69320813,0.00027869,2]
[377412575,1754392708820,235.0,0.00028024,120]
[377412578,1754392746830,-281.54343948,0.00027827,2]
[377412579,1754392746853,-198.31669987,0.00027867,2]
[377412580,1754392759715,672.612921,0.0003,120]
[377412581,1754392770945,-101.68330013,0.00027867,2]
[377412582,1754392770970,-116.04084901,0.00027868,2]
[377412583,1754392794516,-340.05604767,0.00027868,2]
[377412588,1754392815305,201.67089182,0.000249,2]
[377412589,1754392815475,201.67089182,0.000249,2]
[377412590,1754392815589,201.67089182,0.000249,2]
[377412594,1754392836760,-201.67089182,0.00027633,8]
[377412595,1754392836784,-100.32910818,0.00027867,2]
[377412596,1754392839114,-158.0,0.00027867,2]
[377412597,1754392863895,-300.0,0.00027866,2]
[377412598,1754392863919,-248.15985857,0.00027867,2]
[377412599,1754392894212,-370.924097,0.00027866,2]
[377412600,1754392898324,178.431,0.00026849,14]
[377412601,1754392899663,-236.92105253,0.00027866,2]
[377412602,1754392903129,-300.0,0.00027866,2]
[377412603,1754392908472,160.846177,0.00013699,2]
[377412605,1754392932566,-292.15485047,0.00027866,2]
[377412606,1754392932590,-167.84514953,0.00027866,2]
[377412607,1754392943633,1000.0,0.00026869,2]
[377412608,1754392966677,201.67089182,0.000249,2]
[377412609,1754392966808,201.67089182,0.000249,2]
[377412616,1754393038717,201.6861618,0.00026868,2]
[377412617,1754393045373,796.87242515,0.00026871,2]
[377412618,1754393045398,20000.0,0.00026871,2]
[377412619,1754393045422,4103.12757485,0.00026871,2]
[377412620,1754393052572,15896.87242515,0.0002699,2]
[377412621,1754393052595,20000.0,0.0002699,2]
[377412622,1754393052617,20000.0,0.0002699,2]
[377412623,1754393052639,20000.0,0.0002699,2]
[377412624,1754393052662,20000.0,0.0002699,2]
[377412625,1754393052684,4103.12757485,0.0002699,2]
[377412647,1754393126052,353.62365654,0.000249,2]
[377412648,1754393126232,353.62365631,0.000249,2]
[377412649,1754393126434,353.62365631,0.000249,2]
[377412650,1754393126502,353.62365631,0.000249,2]
[377412651,1754393126712,353.62365631,0.000249,2]
[377412652,1754393126788,353.62365631,0.000249,2]
[377412653,1754393126895,353.62365631,0.000249,2]
[377412654,1754393126991,353.62365631,0.000249,2]
[377412655,1754393127216,353.62365631,0.00025455,3]
[377412656,1754393127292,353.62365631,0.00026762,6]
[377412660,1754393131120,200.0,0.00029933,120]
[377412670,1754393149736,-456.11,0.00027773,2]
[377412703,1754393228302,151.0,0.000269,14]
[377412726,1754393285178,235.7491044,0.000249,2]
[377412727,1754393285263,235.7491042,0.000249,2]
[377412728,1754393285357,235.7491042,0.000249,2]
[377412729,1754393285475,235.7491042,0.000249,2]
[377412730,1754393285793,235.7491042,0.000249,2]
[377412731,1754393285918,235.7491042,0.000249,2]
[377412732,1754393285989,235.7491042,0.000249,2]
[377412733,1754393286081,235.7491042,0.000249,2]
[377412734,1754393288175,235.7491042,0.00025455,3]
[377412735,1754393288277,235.7491042,0.00026762,6]
[377412779,1754393322924,204.03057592,0.00027,120]
[377412782,1754393324453,1487.38313033,0.00030685,30]
[377412790,1754393328342,660.37583576,0.00027,120]
[377412792,1754393328445,182.30554308,0.00027,120]
[377412794,1754393328597,164.27917776,0.000248,30]
[377412800,1754393329423,1178.08859386,0.00027,120]
[377412805,1754393330023,189.80356779,0.0003,120]
[377412856,1754393432369,-151.0,0.000272,15]
[377412858,1754393432378,-148.68000003,0.00027399,2]
[377412862,1754393432400,-36.31999997,0.00027399,2]
[377412864,1754393432410,-1200.0,0.00027399,2]
[377412866,1754393432419,-10417.6528058,0.000274,2]
[377412867,1754393432429,-151.0,0.000276,18]
[377412870,1754393432439,-2912.41564107,0.000277,2]
[377413090,1754393440638,-0.03831811,0.00027399,2]
[377413115,1754393443213,-293.00176164,0.00027399,2]
[377413117,1754393443225,-317.71133585,0.00027399,2]
[377413119,1754393443234,-610.7514156,0.00027399,2]
[377413121,1754393443245,-610.7514156,0.00027399,2]
[377413122,1754393443254,-610.7514156,0.00027399,2]
[377413123,1754393443264,-610.7514156,0.00027399,2]
[377413124,1754393443273,-221.45230099,0.00027399,2]
[377413125,1754393443284,-389.29911461,0.00027399,2]
[377413126,1754393443293,-610.7514156,0.00027399,2]
[377413127,1754393443302,-610.7514156,0.00027399,2]
[377413128,1754393443311,-133.52104897,0.00027399,2]
[377413129,1754393443345,-477.23036663,0.00027399,2]
[377413130,1754393443354,-610.7514156,0.00027399,2]
[377413131,1754393443364,-610.7514156,0.00027399,2]
[377413132,1754393443373,-610.7514156,0.00027399,2]
[377413133,1754393443382,-610.7514156,0.00027399,2]
[377413134,1754393443392,-610.7514156,0.00027399,2]
[377413135,1754393443401,-152.41255537,0.00027399,2]
[377413155,1754393446162,-458.33886023,0.00027399,2]
[377413156,1754393446172,-610.7514156,0.00027399,2]
[377413157,1754393446184,-610.7514156,0.00027399,2]
[377413158,1754393446193,-610.7514156,0.00027399,2]
[377413159,1754393446203,-610.7514156,0.00027399,2]
[377413160,1754393446212,-575.8962255,0.00027399,2]
[377413161,1754393447997,-34.8551901,0.00027399,2]
[377413162,1754393448007,-610.7514156,0.00027399,2]
[377413163,1754393448017,-610.7514156,0.00027399,2]
[377413164,1754393448026,-610.7514156,0.00027399,2]
[377413165,1754393448036,-610.7514156,0.00027399,2]
[377413166,1754393448046,-610.7514156,0.00027399,2]
[377413167,1754393448055,-610.7514156,0.00027399,2]
[377413168,1754393448064,-610.7514156,0.00027399,2]
[377413169,1754393448074,-610.7514156,0.00027399,2]
[377413170,1754393448084,-610.7514156,0.00027399,2]
[377413171,1754393448093,-610.7514156,0.00027399,2]
[377413172,1754393448103,-610.7514156,0.00027399,2]
[377413173,1754393448192,-610.7514156,0.00027399,2]
[377413174,1754393448203,-610.7514156,0.00027399,2]
[377413175,1754393448213,-610.7514156,0.00027399,2]
[377413176,1754393448226,-610.7514156,0.00027399,2]
[377413177,1754393448235,-610.7514156,0.00027399,2]
[377413178,1754393448247,-610.7514156,0.00027399,2]
[377413179,1754393448257,-610.7514156,0.00027399,2]
[377413180,1754393448268,-610.7514156,0.00027399,2]
[377413181,1754393448277,-610.7514156,0.00027399,2]
[377413182,1754393448288,-610.7514156,0.00027399,2]
[377413183,1754393448298,-610.7514156,0.00027399,2]
[377413184,1754393448308,-610.7514156,0.00027399,2]
[377413185,1754393448317,-610.7514156,0.00027399,2]
[377413186,1754393448327,-610.7514156,0.00027399,2]
[377413187,1754393448336,-610.7514156,0.00027399,2]
[377413188,1754393448345,-610.7514156,0.00027399,2]
[377413189,1754393448354,-610.7514156,0.00027399,2]
[377413190,1754393448363,-610.7514156,0.00027399,2]
[377413191,1754393448373,-610.7514156,0.00027399,2]
[377413192,1754393448383,-610.7514156,0.00027399,2]
[377413193,1754393448392,-602.02639537,0.00027399,2]
[377413194,1754393448402,-602.02639537,0.00027399,2]
[377413195,1754393448412,-116.43955638,0.000277,2]
[377413196,1754393448422,-422.57230065,0.00027762,2]
[377413197,1754393448435,-500.0,0.00027762,2]
[377413198,1754393448444,-99566.9536743,0.00027763,2]
[377413199,1754393448454,-1969.39355382,0.00027763,2]
[377413200,1754393448463,-500.0,0.00027773,5]
[377413201,1754393448473,-99594.9460463,0.00027773,2]
[377413202,1754393454893,204.99922113,0.000249,2]
[377413203,1754393454985,204.99922104,0.000249,2]
[377413204,1754393455094,204.99922104,0.000249,2]
[377413205,1754393455178,204.99922104,0.000249,2]
[377413206,1754393455256,204.99922104,0.000249,2]
[377413207,1754393455337,204.99922104,0.000249,2]
[377413208,1754393455417,204.99922104,0.00025336,3]
[377413209,1754393455502,204.99922104,0.00027059,6]
[377413210,1754393464412,262.58041745,0.00027101,2]
[377413211,1754393469324,774.13,0.00030136,120]
[377413212,1754393483639,342.67293811,0.00025673,2]
[377413213,1754393613143,202.77737033,0.000249,2]
[377413214,1754393613203,202.77737025,0.000249,2]
[377413215,1754393613242,202.77737025,0.000249,2]
[377413216,1754393613342,202.77737025,0.000249,2]
[377413217,1754393613523,202.77737025,0.00025829,4]
[377413219,1754393635630,178.009969,0.00026466,2]
[377413220,1754393765321,203.21054104,0.000249,2]
[377413221,1754393765407,203.21054099,0.000249,2]
[377413222,1754393765506,203.21054099,0.000249,2]
[377413224,1754393785150,228.4486254,0.00025673,2]
[377413225,1754393839248,628.305452,0.00027397,120]
[377413226,1754393869173,160.661945,0.00013699,2]
[377413230,1754393916041,204.43253169,0.000249,2]
[377413231,1754393916136,204.43253167,0.000249,2]
[377413232,1754393916220,204.43253167,0.000249,2]
[377413233,1754393916502,204.43253167,0.000249,2]
[377413234,1754393916732,204.43253167,0.000249,2]
[377413235,1754393916770,204.43253167,0.000249,2]
[377413236,1754393916813,204.43253167,0.0002637,5]
[377413238,1754393928222,3820.95178243,0.00027101,2]
[377413239,1754393928246,20000.0,0.00027101,2]
[377413240,1754393928270,20000.0,0.00027101,2]
[377413241,1754393928293,20000.0,0.00027101,2]
[377413242,1754393928315,20000.0,0.00027101,2]
[377413243,1754393928430,20000.0,0.00027101,2]
[377413244,1754393928452,20000.0,0.00027101,2]
[377413245,1754393928474,20000.0,0.00027101,2]
[377413246,1754393928495,20000.0,0.00027101,2]
[377413247,1754393928518,20000.0,0.00027101,2]
[377413248,1754393928540,20000.0,0.00027101,2]
[377413249,1754393928562,20000.0,0.00027101,2]
[377413250,1754393928584,20000.0,0.00027101,2]
[377413251,1754393928605,20000.0,0.00027101,2]
[377413252,1754393928627,20000.0,0.00027101,2]
[377413253,1754393928652,20000.0,0.00027101,2]
[377413254,1754393928674,20000.0,0.00027101,2]
[377413255,1754393928698,17177.76919057,0.00027101,2]
[377413256,1754393937618,1000.0,0.00026555,2]
[377413257,1754393939499,179.68,0.00026749,7]
[377413258,1754393950074,1642.55080943,0.00027101,2]
[377413259,1754393950098,3357.44919057,0.00027101,2]
[377413260,1754393959932,16642.55080943,0.00026325,2]
[377413261,1754393959955,8257.44919057,0.00026325,2]
[377413262,1754393965549,3735.67288897,0.00027101,2]
[377413265,1754393997721,4985.83,0.0002519,2]
[377413267,1754394014218,159.71,0.00026749,7]
[377413268,1754394066522,204.43253167,0.000249,2]
[377413269,1754394066630,204.43253167,0.000249,2]
[377413270,1754394066709,204.43253167,0.000249,2]
[377413271,1754394066837,204.43253167,0.000249,2]
[377413272,1754394066919,204.43253167,0.00026662,6]
[377413274,1754394086985,411.06885187,0.00025673,2]
[377413275,1754394096276,1428.10641024,0.0002699,2]
[377413276,1754394096311,20000.0,0.0002699,2]
[377413277,1754394096346,20000.0,0.0002699,2]
[377413278,1754394096378,20000.0,0.0002699,2]
[377413279,1754394096412,8984.18625519,0.0002699,2]
[377413280,1754394124018,5000.0,0.00027101,2]
[377413281,1754394131973,5000.0,0.00027101,2]
[377413282,1754394148786,940.25866076,0.00027101,2]
[377413283,1754394179299,75.55508405,0.0002519,2]
[377413284,1754394179324,4924.44491595,0.0002519,2]
[377413285,1754394179459,4545.21610492,0.00019178,2]
[377413286,1754394228682,201.52892681,0.000249,2]
[377413287,1754394228787,201.52892681,0.000249,2]
[377413289,1754394232127,201.0189,0.00025778,2]
[377413290,1754394276245,601.7367763,0.00026358,2]
[377413292,1754394361143,5000.0,0.0002519,2]
[377413293,1754394361254,2427.31271347,0.00019178,2]
[377413295,1754394380619,201.52892681,0.000249,2]
[377413296,1754394380764,201.52892681,0.000249,2]
[377413298,1754394388461,274.04590125,0.00025001,2]
[377413301,1754394484461,197.581877,0.00026274,2]
[377413302,1754394509123,291.83568863,0.00027101,2]
[377413303,1754394525308,201.52892681,0.000249,2]
[377413304,1754394533322,168.19804205,0.00026434,2]
[377413309,1754394552571,360.96444638,0.00026274,2]
[377413310,1754394552592,305.03555362,0.00026274,2]
[377413311,1754394587816,190.544107,0.00026274,2]
[377413312,1754394590932,-195.11138043,0.00027152,2]
[377413313,1754394630560,500.0,0.00030136,120]
[377413352,1754394632284,-121.44991501,0.00027152,2]
[377413353,1754394632301,-177.96008496,0.00027152,2]
[377413355,1754394632318,-113.87560367,0.00027152,2]
[377413357,1754394632332,-1408.99439633,0.000272,2]
[377413362,1754394632393,-17570.24005347,0.000272,2]
[377413379,1754394640294,-16095.35978112,0.000272,2]
[377413403,1754394647631,-31713.56926003,0.000272,2]
[377413404,1754394648494,671.0,0.00030136,120]
[377413406,1754394671819,207.9510892,0.000249,2]
[377413407,1754394671924,207.95108908,0.000249,2]
[377413408,1754394672038,207.95108908,0.000249,2]
[377413409,1754394672152,207.95108908,0.000249,2]
[377413410,1754394672262,207.95108908,0.000249,2]
[377413411,1754394672339,207.95108908,0.00026147,4]
[377413413,1754394690086,182.6972675,0.000251,2]
[377413421,1754394800920,3000.0,0.00027101,2]
[377413422,1754394824030,207.95108908,0.000249,2]
[377413423,1754394824103,207.95108908,0.000249,2]
[377413424,1754394824202,207.95108908,0.000249,2]
[377413425,1754394824283,207.95108908,0.00025336,3]
[377413427,1754394842417,4747.3226359,0.00026261,2]
[377413428,1754394883734,200.0,0.00026232,15]
[377413429,1754394897072,163.92151,0.00013699,2]
[377413430,1754394897198,163.92151,0.00021404,2]
[377413432,1754394928132,154.677029,0.0003,120]
[377413434,1754394965581,8967.04652506,0.0002622,2]
[377413435,1754394965603,15932.95347494,0.0002622,2]
[377413436,1754394972509,4067.04652506,0.00027101,2]
[377413437,1754394972533,932.95347494,0.00027101,2]
[377413438,1754394972984,154.67702901,0.0003,120]
[377413439,1754394978024,207.69115028,0.000249,2]
[377413440,1754394978146,207.69115021,0.000249,2]
[377413441,1754394978243,207.69115021,0.00025829,4]
[377413442,1754394988169,4822.86221832,0.00027101,2]
[377413443,1754394991396,150.0,0.000251,2]
[377413444,1754395005814,500.0,0.0003056,120]
[377413445,1754395033392,500.0,0.0003056,120]
[377413446,1754395053278,681.50817776,0.0002708,2]
[377413447,1754395053594,10418.9464733,0.00026213,2]
[377413448,1754395066717,2370.65620498,0.00027101,2]
[377413449,1754395066739,859.87669665,0.00027101,2]
[377413450,1754395085036,1673.61718126,0.0002519,2]
[377413451,1754395089005,17466.50612209,0.00026221,2]
[377413452,1754395089026,6101.66129781,0.00026221,2]
[377413453,1754395138311,223.924506,0.00025778,2]
[377413454,1754395138662,223.924506,0.00026044,2]
[377413455,1754395139165,231.32097113,0.000249,2]
[377413456,1754395142427,471.229089,0.00027397,120]
[377413458,1754395284568,231.32097111,0.000249,2]
[377413459,1754395292765,382.3519421,0.000251,2]
[377413460,1754395388126,12605.49580585,0.00027101,7]
[377413461,1754395388149,20000.0,0.00027101,7]
[377413462,1754395388173,20000.0,0.00027101,7]
[377413463,1754395388196,20000.0,0.00027101,7]
[377413464,1754395408334,2407.27727042,0.00026871,2]
[377413465,1754395430840,231.32097111,0.000249,2]
[377413466,1754395440864,233.417116,0.00025778,2]
[377413467,1754395441289,233.417116,0.00026044,2]
[377413468,1754395441766,157.49088556,0.00026363,2]
[377413472,1754395465248,854.1169837,0.00026171,2]
[377413473,1754395525815,705.59306,0.00026152,2]
[377413474,1754395582095,228.47516912,0.000249,2]
[377413475,1754395590092,500.0,0.0003056,30]
[377413476,1754395594306,254.90129473,0.00025001,2]
[377413477,1754395598757,500.0,0.0003056,30]
[377413478,1754395609995,247.33,0.00030137,120]
[377413479,1754395617634,500.0,0.0003056,30]
[377413480,1754395629644,251.0376184,0.00026165,2]
[377413483,1754395641413,160.0,0.0002,3]
[377413487,1754395685856,192.46645,0.00026144,2]
[377413491,1754395732663,-305.08767993,0.00026997,2]
[377413492,1754395735083,-171.29568507,0.00026997,2]
[377413493,1754395737727,-213.95841193,0.00026997,2]
[377413494,1754395741671,-460.0,0.00026997,2]
[377413495,1754395743266,-154.745903,0.00026997,2]
[377413502,1754395743841,186.44118922,0.00026187,2]
[377413506,1754395746187,-460.0,0.00026997,2]
[377413507,1754395748439,-550.4,0.00026997,2]
[377413508,1754395750028,-361.83250672,0.00026997,2]
[377413509,1754395751909,-469.96996308,0.00026997,2]
[377413510,1754395753713,-460.0,0.00026997,2]
[377413511,1754395756669,-229.76630676,0.00026997,2]
[377413542,1754395832533,-202.86075907,0.00027068,2]
[377413543,1754395832543,-479.41630331,0.00027076,2]
[377413544,1754395832552,-300.0,0.00027096,2]
[377413545,1754395832562,-1200.0,0.00027096,2]
[377413547,1754395832571,-500.0,0.00027097,2]
[377413548,1754395832581,-232.94888484,0.00027097,2]
[377413550,1754395832590,-500.0,0.00027097,2]
[377413552,1754395832600,-500.0,0.00027097,2]
[377413554,1754395832609,-500.0,0.00027097,2]
[377413556,1754395832618,-500.0,0.00027097,2]
[377413558,1754395832627,-500.0,0.00027097,2]
[377413560,1754395832636,-206.30614186,0.00027097,2]
[377413561,1754395832645,-500.0,0.00027097,2]
[377413562,1754395832654,-500.0,0.00027097,2]
[377413563,1754395832663,-500.0,0.00027097,2]
[377413564,1754395832672,-500.0,0.00027097,2]
[377413565,1754395832681,-500.0,0.00027097,2]
[377413566,1754395832690,-453.32812101,0.00027097,2]
[377413567,1754395832699,-500.0,0.00027097,2]
[377413568,1754395832707,-159.43335321,0.00027097,2]
[377413652,1754395838758,-1969.31210729,0.00027098,2]
[377413653,1754395838768,-151.0,0.00027098,7]
[377413654,1754395838778,-151.0,0.00027098,7]
[377413655,1754395838788,-151.0,0.00027098,7]
[377413656,1754395838798,-151.0,0.00027098,7]
[377413657,1754395838809,-10070.9538012,0.00027098,2]
[377413660,1754395840495,-500.0,0.00027096,2]
[377413661,1754395840505,-500.0,0.00027096,2]
[377413662,1754395840514,-500.0,0.00027096,2]
[377413663,1754395840523,-500.0,0.00027096,2]
[377413664,1754395840533,-500.0,0.00027096,2]
[377413665,1754395840542,-500.0,0.00027096,2]
[377413666,1754395840551,-500.0,0.00027096,2]
[377413667,1754395840562,-445.77231746,0.00027096,2]
[377413668,1754395840574,-54.22768254,0.00027096,2]
[377413670,1754395840584,-440.13231746,0.00027096,2]
[377413683,1754395878074,213.27072808,0.000249,2]
[377413684,1754395878172,213.27072802,0.000249,2]
[377413685,1754395878267,213.27072802,0.000249,2]
[377413688,1754395894345,291.90923,0.00013699,2]
[377413689,1754395894580,291.90923,0.00020187,2]
[377413690,1754395894822,291.90923,0.00026676,2]
[377413691,1754395895522,169.93419649,0.00025001,2]
[377413693,1754395908927,206.28856532,0.00025206,30]
[377413694,1754395921977,2877.6851511,0.00026094,2]
[377413695,1754395927609,599.68,0.00026753,2]
[377413696,1754395948069,810.0,0.00030137,120]
[377413697,1754395963510,-230.23369324,0.00027,3]
[377413698,1754395965552,-230.92326397,0.00027,3]
[377413699,1754395965575,-229.12115582,0.00027087,2]
[377413700,1754395967570,-70.87884418,0.00027087,2]
[377413701,1754395967593,-142.02282829,0.00027088,3]
[377413702,1754395970178,-230.62900543,0.00027088,3]
[377413703,1754395992844,-305.254097,0.00027076,2]
[377413704,1754395995614,-273.75347117,0.00027076,2]
[377413705,1754396000573,-300.0,0.00027076,2]
[377413706,1754396003282,-300.0,0.00027076,2]
[377413707,1754396003356,427.96,0.000301,120]
[377413708,1754396025342,213.27072802,0.000249,2]
[377413709,1754396025438,213.27072802,0.000249,2]
[377413710,1754396026111,-163.85059341,0.00026995,2]
[377413712,1754396028748,162.0,0.00025,7]
[377413713,1754396028829,-296.14940659,0.00026995,2]
[377413714,1754396029117,162.0,0.00024932,7]
[377413715,1754396029449,162.0,0.0002589,7]
[377413716,1754396068984,403.42170413,0.00030559,30]
[377413717,1754396075704,1873.59888189,0.00030137,120]
[377413718,1754396098659,-295.047,0.00026995,2]
[377413719,1754396122025,-320.69491327,0.00026995,2]
[377413720,1754396129624,162.0,0.00025,7]
[377413721,1754396130032,162.0,0.0002589,7]
[377413722,1754396145285,-330.21772062,0.00026995,2]
[377413723,1754396171066,-160.0,0.00026988,2]
[377413724,1754396172008,213.27072802,0.000249,2]
[377413725,1754396172094,213.27072802,0.000249,2]
[377413727,1754396178267,-223.53304268,0.00026988,2]
[377413728,1754396178292,-207.77204405,0.00026995,2]
[377413729,1754396196935,150.0,0.00025001,2]
[377413730,1754396203732,-240.95775073,0.00027072,2]
[377413731,1754396205290,-219.04224927,0.00027072,2]
[377413732,1754396225396,206.28856532,0.00025206,30]
[377413733,1754396228397,163.0,0.00025,7]
[377413734,1754396229134,-236.35928118,0.00027072,2]
[377413735,1754396269561,-236.57136159,0.00027,3]
[377413736,1754396272318,-224.58559562,0.00027,3]
[377413737,1754396272341,-114.84234904,0.00027071,10]
[377413738,1754396274896,-216.13462102,0.00027071,10]
[377413739,1754396278081,-396.56519869,0.00027072,2]
[377413740,1754396280879,-107.07552013,0.00027072,2]